bitfinex-derivatives/quotes_BTCF0:USTF0_20250614
["timestamp","ask_amount","ask_price","bid_price","bid_amount"]
[1749887247751,2.58074942,105210.0,105200.0,1.45011586]
[1749887247959,2.58074942,105210.0,105200.0,1.44607314]
[1749887248257,2.58074942,105210.0,105200.0,1.46092834]
[1749887249252,2.58074942,105210.0,105200.0,1.45011586]
[1749887249460,2.58074942,105210.0,105200.0,1.46092834]
[1749887249659,2.58074942,105210.0,105200.0,1.44607314]
[1749887249859,2.58074942,105210.0,105200.0,1.46092834]
[1749887250153,2.58074942,105210.0,105200.0,1.44607251]
[1749887250360,2.58074942,105210.0,105200.0,1.43526066]
[1749887250556,2.58074942,105210.0,105200.0,1.44607251]
[1749887250751,2.58074942,105210.0,105200.0,1.43526066]
[1749887250952,2.58074942,105210.0,105200.0,1.44607251]
[1749887251260,2.58074942,105210.0,105200.0,1.46092771]
[1749887251560,2.58074942,105210.0,105200.0,1.43526066]
[1749887251760,2.58074942,105210.0,105200.0,1.4609277]
[1749887252461,2.58074942,105210.0,105200.0,1.46092554]
[1749887252959,2.58074942,105210.0,105200.0,1.31437681]
[1749887253150,2.58074942,105210.0,105200.0,1.46092554]
[1749887254664,2.58074942,105210.0,105200.0,1.46092666]
[1749887254856,2.58074942,105210.0,105200.0,1.45011586]
[1749887255150,2.58074942,105210.0,105200.0,1.46092665]
[1749887255355,2.58074942,105210.0,105200.0,1.46092617]
[1749887255560,2.43420069,105210.0,105200.0,1.46092617]
[1749887255862,2.58074942,105210.0,105200.0,1.46092617]
[1749887256062,2.58074942,105210.0,105200.0,1.46092934]
[1749887256258,2.58074942,105210.0,105200.0,1.44607413]
[1749887256468,2.58074942,105210.0,105200.0,1.46092933]
[1749887256666,2.58074942,105210.0,105200.0,1.44607414]
[1749887257262,2.58074942,105210.0,105200.0,1.46092932]
[1749887257465,2.58074942,105210.0,105200.0,1.44607413]
[1749887257663,2.58074942,105210.0,105200.0,1.46092932]
[1749887257864,2.58074942,105210.0,105200.0,1.45011586]
[1749887258064,2.58074942,105210.0,105200.0,1.46092934]
[1749887258262,2.58074942,105210.0,105200.0,1.43526066]
[1749887258464,2.58074942,105210.0,105200.0,1.46092934]
[1749887258765,2.58074942,105210.0,105200.0,1.44607414]
[1749887259373,2.58074942,105210.0,105200.0,1.46092934]
[1749887259867,2.58074942,105210.0,105200.0,1.43526066]
[1749887260168,2.58074942,105210.0,105200.0,1.45011586]
[1749887260469,2.58074942,105210.0,105200.0,1.46092949]
[1749887260958,2.58074942,105210.0,105200.0,1.45011594]
[1749887261155,2.58074942,105210.0,105200.0,1.46092958]
[1749887261463,2.58074942,105210.0,105200.0,1.45011594]
[1749887261670,2.58074942,105210.0,105200.0,1.4609295]
[1749887262069,2.58074942,105210.0,105200.0,1.45011586]
[1749887262366,2.58074942,105210.0,105200.0,1.4609295]
[1749887262567,2.58074942,105210.0,105200.0,1.46092948]
[1749887262769,2.58074942,105210.0,105200.0,1.4501159]
[1749887262965,2.58074942,105210.0,105200.0,1.46092959]
[1749887263271,2.58074942,105210.0,105200.0,1.46072974]
[1749887263460,2.58074942,105210.0,105200.0,1.46072991]
[1749887263867,2.58074942,105210.0,105200.0,1.4458745]
[1749887264168,2.58074942,105210.0,105200.0,1.44587447]
[1749887264368,2.58074942,105210.0,105200.0,1.46072985]
[1749887265271,2.58074942,105210.0,105200.0,1.46072762]
[1749887265474,2.58074942,105210.0,105200.0,1.46072801]
[1749887265661,2.58074942,105210.0,105200.0,1.46072799]
[1749887266067,2.58074942,105210.0,105200.0,1.44991602]
[1749887266266,2.58074942,105210.0,105200.0,1.44587356]
[1749887266972,2.58074942,105210.0,105200.0,1.46072893]
[1749887267372,2.58074942,105210.0,105200.0,1.44587356]
[1749887267669,2.58074942,105210.0,105200.0,1.46072893]
[1749887267972,2.58074942,105210.0,105200.0,1.44991603]
[1749887268171,2.58074942,105210.0,105200.0,1.43506066]
[1749887268374,2.58074942,105210.0,105200.0,1.44991603]
[1749887268673,2.58074942,105210.0,105200.0,1.43506066]
[1749887268968,2.58074942,105210.0,105200.0,1.46073131]
[1749887269371,2.58074942,105210.0,105200.0,1.43506066]
[1749887269564,2.58074942,105210.0,105200.0,1.46073131]
[1749887269761,2.58074942,105210.0,105200.0,1.43506066]
[1749887269962,2.58074942,105210.0,105200.0,1.46073131]
[1749887270470,2.58074942,105210.0,105200.0,1.44991603]
[1749887270663,2.58074942,105210.0,105200.0,1.46072741]
[1749887271664,2.58074942,105210.0,105200.0,1.44991603]
[1749887271867,2.58074942,105210.0,105200.0,1.46072741]
[1749887272269,2.58074942,105210.0,105200.0,1.44587204]
[1749887272469,2.58074942,105210.0,105200.0,1.46072741]
[1749887272771,2.58074942,105210.0,105200.0,1.44991603]
[1749887273072,2.58074942,105210.0,105200.0,1.43498066]
[1749887273271,2.58074942,105210.0,105200.0,1.46064741]
[1749887274074,2.58074942,105210.0,105200.0,1.46064725]
[1749887274268,2.58074942,105210.0,105200.0,1.44579188]
[1749887274475,2.58074942,105210.0,105200.0,1.46064725]
[1749887275065,2.58074942,105210.0,105200.0,1.44983603]
[1749887275264,2.58074942,105210.0,105200.0,1.44579188]
[1749887275466,2.58074942,105210.0,105200.0,1.43498066]
[1749887275667,2.58074942,105210.0,105200.0,1.44579188]
[1749887275871,2.58074942,105210.0,105200.0,1.46064725]
[1749887276674,2.58074942,105210.0,105200.0,1.44579188]
[1749887276975,2.58074942,105210.0,105200.0,1.46064725]
[1749887278175,2.58074942,105210.0,105200.0,1.44983603]
[1749887278374,2.58074942,105210.0,105200.0,1.43498066]
[1749887278572,2.58074942,105210.0,105200.0,1.44983603]
[1749887278775,2.58074942,105210.0,105200.0,1.46064725]
[1749887278977,2.58074942,105210.0,105200.0,1.43498066]
[1749887279173,2.58074942,105210.0,105200.0,1.44579188]
[1749887279373,2.58074942,105210.0,105200.0,1.46064707]
[1749887279579,2.58074942,105210.0,105200.0,1.43498066]
[1749887279875,2.58074942,105210.0,105200.0,1.46064709]
[1749887280081,2.58074942,105210.0,105200.0,1.27061899]
[1749887280280,2.58074942,105210.0,105200.0,1.43498066]
[1749887280480,2.58074942,105210.0,105200.0,1.46064709]
[1749887280774,2.58074942,105210.0,105200.0,1.44579172]
[1749887281174,2.58074942,105210.0,105200.0,1.27061899]
[1749887281374,2.58074942,105210.0,105200.0,1.43498076]
[1749887281574,2.58074942,105210.0,105200.0,1.46064719]
[1749887281777,2.58074942,105210.0,105200.0,1.44983613]
[1749887282083,2.58074942,105210.0,105200.0,1.44579182]
[1749887282284,2.58074942,105210.0,105200.0,1.46064709]
[1749887282485,2.58074942,105210.0,105200.0,1.44983603]
[1749887282687,2.58074942,105210.0,105200.0,1.46064692]
[1749887283490,2.58074942,105210.0,105200.0,1.4606472]
[1749887283988,2.58074942,105210.0,105200.0,1.44579183]
[1749887284182,2.58074942,105210.0,105200.0,1.4606472]
[1749887284883,2.58074942,105210.0,105200.0,1.44983613]
[1749887285083,2.58074942,105210.0,105200.0,1.46064736]
[1749887285586,2.58074942,105210.0,105200.0,1.25980793]
[1749887285885,2.58074942,105210.0,105200.0,1.27061998]
[1749887286586,2.58074942,105210.0,105200.0,1.25576487]
[1749887286887,2.58074942,105210.0,105200.0,1.27062024]
[1749887287184,2.58074942,105210.0,105200.0,1.25980793]
[1749887287384,2.58074942,105210.0,105200.0,1.27062024]
[1749887287689,2.58074942,105210.0,105200.0,1.25980793]
[1749887287990,2.58074942,105210.0,105200.0,1.46064834]
[1749887288382,2.58074942,105210.0,105200.0,1.44579297]
[1749887288582,2.58074942,105210.0,105200.0,1.46064834]
[1749887288776,2.58074942,105210.0,105200.0,1.25576487]
[1749887288777,2.43420069,105210.0,105200.0,1.25576487]
[1749887288983,2.58074942,105210.0,105200.0,1.27062024]
[1749887289388,2.58074942,105210.0,105200.0,1.25980793]
[1749887289588,2.58074942,105210.0,105200.0,1.25576471]
[1749887289783,2.58074942,105210.0,105200.0,1.27062008]
[1749887289984,2.43420069,105210.0,105200.0,1.12407135]
[1749887290290,2.58074942,105210.0,105200.0,1.27062008]
[1749887290989,2.58074942,105210.0,105200.0,1.25576471]
[1749887291189,2.58074942,105210.0,105200.0,1.25980793]
[1749887291394,2.58074942,105210.0,105200.0,1.27062008]
[1749887291885,2.58074942,105210.0,105200.0,1.25980793]
[1749887292079,2.58074942,105210.0,105200.0,1.27062008]
[1749887293986,2.58074942,105210.0,105200.0,1.25980793]
[1749887294182,2.58074942,105210.0,105200.0,1.25576471]
[1749887294383,2.58074942,105210.0,105200.0,1.27062008]
[1749887294883,2.58074942,105210.0,105200.0,1.25980793]
[1749887295079,2.58074942,105210.0,105200.0,1.27062008]
[1749887295280,2.58074942,105210.0,105200.0,1.44983603]
[1749887295485,2.58074942,105210.0,105200.0,1.43498066]
[1749887295684,2.58074942,105210.0,105200.0,1.44983603]
[1749887295981,2.58074942,105210.0,105200.0,1.46067166]
[1749887296590,2.58074942,105210.0,105200.0,1.44581629]
[1749887296791,2.58074942,105210.0,105200.0,1.46067166]
[1749887297093,2.58074942,105210.0,105200.0,1.46067165]
[1749887297393,2.58074942,105210.0,105200.0,1.44581629]
[1749887297594,2.58074942,105210.0,105200.0,1.43500414]
[1749887297789,2.58074942,105210.0,105200.0,1.46067165]
[1749887297995,2.58074942,105210.0,105200.0,1.44581628]
[1749887298196,2.58074942,105210.0,105200.0,1.44985951]
[1749887298495,2.58074942,105210.0,105200.0,1.46067183]
[1749887298696,2.58074942,105210.0,105200.0,1.46067206]
[1749887298896,2.58074942,105210.0,105200.0,1.46067207]
[1749887299098,2.58074942,105210.0,105200.0,1.4606721]
[1749887299292,2.58074942,105210.0,105200.0,1.44581673]
[1749887299692,2.58074942,105210.0,105200.0,1.24497604]
[1749887299889,2.58074942,105210.0,105200.0,1.25983141]
[1749887300199,2.58074942,105210.0,105200.0,1.27064384]
[1749887300397,2.58074942,105210.0,105200.0,1.25578847]
[1749887300594,2.58074942,105210.0,105200.0,1.27064384]
[1749887300795,2.58074942,105210.0,105200.0,1.24497604]
[1749887301001,2.58074942,105210.0,105200.0,1.27064384]
[1749887301500,2.58074942,105210.0,105200.0,1.27064368]
[1749887301997,2.58074942,105210.0,105200.0,1.25578826]
[1749887302195,2.58074942,105210.0,105200.0,1.25983141]
[1749887302396,2.43420069,105210.0,105200.0,1.2706432]
[1749887302596,2.58074942,105210.0,105200.0,1.25983141]
[1749887302799,2.58074942,105210.0,105200.0,1.27064306]
[1749887303795,2.58074942,105210.0,105200.0,1.27064322]
[1749887304503,2.58074942,105210.0,105200.0,1.46067112]
[1749887304698,2.58074942,105210.0,105200.0,1.25578782]
[1749887304900,2.58074942,105210.0,105200.0,1.27064318]
[1749887305101,2.58074942,105210.0,105200.0,1.25578776]
[1749887305405,2.58074942,105210.0,105200.0,1.43500394]
[1749887305807,2.58074942,105210.0,105200.0,1.25578776]
[1749887306008,2.58074942,105210.0,105200.0,1.44581566]
[1749887306806,2.58074942,105210.0,105200.0,1.43500394]
[1749887307605,2.58074942,105210.0,105200.0,1.46067102]
[1749887308007,2.58074942,105210.0,105200.0,1.4498593]
[1749887308700,2.58074942,105210.0,105200.0,1.46067102]
[1749887308904,2.58074942,105210.0,105200.0,1.44985559]
[1749887309100,2.43420069,105210.0,105200.0,1.46066731]
[1749887309300,1.08074942,105210.0,105200.0,1.44985559]
[1749887309506,1.08074942,105210.0,105200.0,1.46066704]
[1749887309709,1.08074942,105210.0,105200.0,1.46066666]
[1749887310002,1.08074942,105210.0,105200.0,1.44985537]
[1749887310209,1.08074942,105210.0,105200.0,1.43500023]
[1749887310405,1.08074942,105210.0,105200.0,1.46066632]
[1749887310601,1.08074942,105210.0,105200.0,1.44985538]
[1749887310802,1.08074942,105210.0,105200.0,1.44581106]
[1749887311107,1.08074942,105210.0,105200.0,1.46066619]
[1749887311307,1.08074942,105210.0,105200.0,1.46066502]
[1749887311507,1.08074942,105210.0,105200.0,1.460665]
[1749887311709,1.08074942,105210.0,105200.0,1.43500023]
[1749887312006,1.08074942,105210.0,105200.0,1.46066499]
[1749887312403,1.08074942,105210.0,105200.0,1.44580985]
[1749887312610,1.08074942,105210.0,105200.0,1.460665]
[1749887312903,1.08074942,105210.0,105200.0,1.46066499]
[1749887313107,1.08074942,105210.0,105200.0,1.44580985]
[1749887313303,1.08074942,105210.0,105200.0,1.43500023]
[1749887313507,1.08074942,105210.0,105200.0,1.460665]
[1749887313807,1.08074942,105210.0,105200.0,1.44580985]
[1749887314006,1.08074942,105210.0,105200.0,1.44985537]
[1749887314208,1.08074942,105210.0,105200.0,1.46066182]
[1749887315803,1.08074942,105210.0,105200.0,1.46066181]
[1749887315998,1.08074942,105210.0,105200.0,1.46066046]
[1749887316612,1.08074942,105210.0,105200.0,0.51138046]
[1749887316809,1.08074942,105210.0,105200.0,1.45978046]
[1749887317110,1.08074942,105210.0,105200.0,1.4449258]
[1749887317501,1.08074942,105210.0,105200.0,1.44897537]
[1749887317809,1.08074942,105210.0,105200.0,1.45978249]
[1749887318203,1.08074942,105210.0,105200.0,1.44897537]
[1749887318405,1.08074942,105210.0,105200.0,1.45978249]
[1749887319204,0.93420069,105210.0,105200.0,1.4597825]
[1749887319404,1.08074942,105210.0,105200.0,1.44492736]
[1749887319604,1.08074942,105210.0,105200.0,1.45978251]
[1749887319903,1.08074942,105210.0,105200.0,1.44897538]
[1749887320510,1.08074942,105210.0,105200.0,1.44492751]
[1749887320811,0.93420069,105210.0,105200.0,1.43412023]
[1749887321009,1.08074942,105210.0,105200.0,1.43412023]
[1749887321210,1.08074942,105210.0,105200.0,1.45978266]
[1749887322204,1.08074942,105210.0,105200.0,1.44897538]
[1749887322404,1.08074942,105210.0,105200.0,1.45978266]
[1749887322914,1.08074942,105210.0,105200.0,1.44897538]
[1749887323706,1.08074942,105210.0,105200.0,1.45978383]
[1749887324111,1.08074942,105210.0,105200.0,1.45978352]
[1749887324607,1.08074942,105210.0,105200.0,1.45978351]
[1749887325207,0.99162154,105210.0,105200.0,1.43412023]
[1749887325415,0.99162154,105210.0,105200.0,1.45978354]
[1749887325609,0.99162154,105210.0,105200.0,1.44492839]
[1749887325807,0.99162154,105210.0,105200.0,1.44897538]
[1749887326008,0.99162154,105210.0,105200.0,1.459784]
[1749887326212,0.99162154,105210.0,105200.0,1.45978403]
[1749887326416,0.99162154,105210.0,105200.0,1.44492888]
[1749887326715,0.99162154,105210.0,105200.0,1.4597842]
[1749887327215,0.99162154,105210.0,105200.0,1.44492905]
[1749887327409,0.99162154,105210.0,105200.0,1.43412023]
[1749887327713,0.99162154,105210.0,105200.0,1.44897538]
[1749887327911,0.99162154,105210.0,105200.0,1.43412023]
[1749887328703,0.84507281,105210.0,105200.0,1.44492905]
[1749887328909,0.99162154,105210.0,105200.0,1.44492903]
[1749887329110,0.99162154,105210.0,105200.0,1.45978449]
[1749887329311,0.99162154,105210.0,105200.0,1.44492936]
[1749887329612,0.99162154,105210.0,105200.0,1.4597845]
[1749887329814,0.99162154,105210.0,105200.0,1.44492936]
[1749887330010,0.99162154,105210.0,105200.0,1.4597845]
[1749887330211,0.99162154,105210.0,105200.0,1.44897537]
[1749887330513,0.99162154,105210.0,105200.0,1.4597845]
[1749887331110,0.99162154,105210.0,105200.0,1.43412023]
[1749887331315,0.99162154,105210.0,105200.0,1.44492936]
[1749887331517,0.99162154,105210.0,105200.0,1.4597845]
[1749887331911,0.99162154,105210.0,105200.0,1.44492936]
[1749887332307,0.98748319,105210.0,105200.0,1.44492936]
[1749887332619,0.98748319,105210.0,105200.0,1.44897537]
[1749887332818,0.98748319,105210.0,105200.0,1.45978441]
[1749887333119,0.98748319,105210.0,105200.0,1.44897537]
[1749887333417,0.99162154,105210.0,105200.0,1.45978437]
[1749887334012,0.99162154,105210.0,105200.0,1.45978415]
[1749887334213,0.98748319,105210.0,105200.0,1.45978415]
[1749887335119,0.98748319,105210.0,105200.0,1.45978368]
[1749887335319,0.98748319,105210.0,105200.0,1.45978384]
[1749887335717,0.98748319,105210.0,105200.0,1.44897537]
[1749887335919,0.98748319,105210.0,105200.0,1.45978384]
[1749887336518,0.98748319,105210.0,105200.0,1.4449287]
[1749887336723,0.98748319,105210.0,105200.0,1.44897537]
[1749887336923,0.98748319,105210.0,105200.0,1.45978384]
[1749887337123,0.98748319,105210.0,105200.0,1.4449287]
[1749887337319,0.98748319,105210.0,105200.0,1.29837996]
[1749887337514,0.98748319,105210.0,105200.0,1.45978383]
[1749887337718,0.98748319,105210.0,105200.0,1.45978384]
[1749887338314,0.98748319,105210.0,105200.0,1.44897537]
[1749887338625,0.98748319,105210.0,105200.0,1.45978384]
[1749887339014,0.98748319,105210.0,105200.0,1.43412023]
[1749887339212,0.98748319,105210.0,105200.0,1.44492869]
[1749887339417,0.98748319,105210.0,105200.0,1.45978384]
[1749887339819,0.98748319,105210.0,105200.0,1.43412023]
[1749887340027,0.98748319,105210.0,105200.0,1.45978384]
[1749887340726,0.98748319,105210.0,105200.0,1.4449287]
[1749887341127,0.98748319,105210.0,105200.0,1.43412023]
[1749887341325,0.99162154,105210.0,105200.0,1.44897537]
[1749887341520,0.99162154,105210.0,105200.0,1.44492869]
[1749887341726,0.99162154,105210.0,105200.0,1.43412023]
[1749887341926,0.99162154,105210.0,105200.0,1.45978383]
[1749887342328,0.98748319,105210.0,105200.0,1.43412023]
[1749887342525,0.98748319,105210.0,105200.0,1.45978383]
[1749887342723,0.98748319,105210.0,105200.0,1.3132351]
[1749887342924,0.98748319,105210.0,105200.0,1.44897537]
[1749887343128,0.98748319,105210.0,105200.0,1.45978383]
[1749887343424,0.84507281,105210.0,105200.0,1.44492869]
[1749887343730,0.99162154,105210.0,105200.0,1.44897537]
[1749887344129,0.99162154,105210.0,105200.0,1.45978383]
[1749887344430,0.99162154,105210.0,105200.0,1.4597841]
[1749887344631,0.99162154,105210.0,105200.0,1.45978418]
[1749887344819,0.99162154,105210.0,105200.0,1.25490114]
[1749887345019,0.99162154,105210.0,105200.0,1.2697563]
[1749887345427,0.98748319,105210.0,105200.0,1.12276757]
[1749887345736,0.98748319,105210.0,105200.0,1.1227678]
[1749887345921,0.98748319,105210.0,105200.0,1.12276817]
[1749887346227,0.98748319,105210.0,105200.0,1.0971036]
[1749887346430,0.99162154,105210.0,105200.0,1.25850777]
[1749887346637,0.99162154,105210.0,105200.0,1.26931693]
[1749887347336,0.99162154,105210.0,105200.0,1.26931956]
[1749887347838,0.99162154,105210.0,105200.0,1.26931957]
[1749887348239,0.99162154,105210.0,105200.0,1.25446413]
[1749887348835,0.99162154,105210.0,105200.0,1.24365233]
[1749887349038,0.99162154,105210.0,105200.0,1.25446413]
[1749887349238,0.99162154,105210.0,105200.0,1.26931957]
[1749887349440,0.98748319,105210.0,105200.0,1.26931957]
[1749887349634,0.84093446,105210.0,105200.0,1.26931957]
[1749887349837,0.84093446,105210.0,105200.0,1.25850777]
[1749887349838,0.98748319,105210.0,105200.0,1.25850777]
[1749887350035,0.98748319,105210.0,105200.0,1.26931957]
[1749887350735,0.98748319,105210.0,105200.0,1.25446413]
[1749887350934,0.98748319,105210.0,105200.0,1.25850777]
[1749887351132,0.98748319,105210.0,105200.0,1.25446413]
[1749887351337,0.98748319,105210.0,105200.0,1.26931957]
[1749887351737,0.98748319,105210.0,105200.0,1.25446413]
[1749887351938,0.98748319,105210.0,105200.0,1.25850777]
[1749887352139,0.98748319,105210.0,105200.0,1.25446413]
[1749887352337,0.98748319,105210.0,105200.0,1.24365233]
[1749887352540,0.98748319,105210.0,105200.0,1.26931957]
[1749887352737,0.98748319,105210.0,105200.0,1.24365233]
[1749887352942,0.98748319,105210.0,105200.0,1.25850777]
[1749887353240,0.98748319,105210.0,105200.0,1.24365233]
[1749887353638,0.98748319,105210.0,105200.0,1.26931803]
[1749887353843,0.98748319,105210.0,105200.0,1.24365233]
[1749887354043,0.98748319,105210.0,105200.0,1.26931805]
[1749887354243,0.98748319,105210.0,105200.0,1.25850777]
[1749887354438,0.98748319,105210.0,105200.0,1.26931806]
[1749887354641,0.99162154,105210.0,105200.0,1.26931806]
[1749887354842,0.99162154,105210.0,105200.0,0.17480933]
[1749887355146,0.95862154,105210.0,105200.0,1.09149043]
[1749887355343,1.13747027,105210.0,105200.0,0.11311043]
[1749887355542,0.190046,105190.0,105180.0,0.04628039]
[1749887355735,1.05819473,105190.0,105180.0,0.98097632]
[1749887355935,1.05819473,105190.0,105170.0,0.07698039]
[1749887355936,0.1900641,105180.0,105170.0,0.07698039]
[1749887356139,0.85022173,105180.0,105170.0,0.0307]
[1749887356545,0.1900822,105170.0,105160.0,0.86909282]
[1749887356747,0.76233093,105170.0,105160.0,1.04739282]
[1749887356950,0.85143983,105170.0,105160.0,1.81727282]
[1749887357151,0.85143983,105170.0,105160.0,1.96382155]
[1749887357742,0.76233093,105170.0,105160.0,1.96382155]
[1749887358145,0.76233093,105170.0,105160.0,1.01594155]
[1749887358346,0.76233093,105170.0,105160.0,1.81727282]
[1749887359251,0.76533093,105170.0,105160.0,1.81727282]
[1749887359742,0.76833093,105170.0,105160.0,1.81727282]
[1749887360143,0.76833093,105170.0,105160.0,0.83869282]
[1749887360347,0.76833093,105170.0,105160.0,1.78665282]
[1749887360651,0.86157818,105170.0,105160.0,1.78665282]
[1749887361146,0.86157818,105170.0,105160.0,0.01721282]
[1749887361350,0.86157818,105170.0,105160.0,0.17814255]
[1749887364658,0.77246928,105170.0,105160.0,0.17814255]
[1749887365656,0.77246928,105170.0,105160.0,0.00014255]
[1749887365956,0.77246928,105170.0,105160.0,0.17818255]
[1749887367656,0.77246928,105170.0,105160.0,0.19304528]
[1749887367951,0.62592055,105170.0,105160.0,0.01500528]
[1749887368156,0.77246928,105170.0,105160.0,0.01500528]
[1749887368351,0.77246928,105170.0,105160.0,0.19296528]
[1749887369258,0.77246928,105170.0,105160.0,0.17810255]
[1749887370059,0.77246928,105170.0,105160.0,0.19296528]
[1749887370756,0.77246928,105170.0,105160.0,0.17810255]
[1749887370950,0.77246928,105170.0,105160.0,0.19296527]
[1749887371457,0.77246928,105170.0,105160.0,0.19296528]
[1749887371861,0.77246928,105170.0,105160.0,0.17810255]
[1749887372055,0.77246928,105170.0,105160.0,0.19296528]
[1749887375454,0.77246928,105170.0,105160.0,0.17810255]
[1749887375660,0.77246928,105170.0,105160.0,0.19296528]
[1749887378456,0.77246928,105170.0,105160.0,0.17810255]
[1749887378659,0.77246928,105170.0,105160.0,0.19296528]
[1749887379666,0.77246928,105170.0,105160.0,0.17810255]
[1749887380159,0.77246928,105170.0,105160.0,0.19300528]
[1749887380752,0.86157818,105170.0,105160.0,0.19300528]
[1749887381962,0.86157818,105170.0,105160.0,0.19300527]
[1749887382355,0.86157818,105170.0,105160.0,0.17814255]
[1749887382566,0.86157818,105170.0,105160.0,0.19300522]
[1749887383659,0.71502945,105170.0,105160.0,0.52965403]
[1749887383855,0.86157818,105170.0,105160.0,0.40085382]
[1749887384059,0.86157818,105170.0,105160.0,0.4008532]
[1749887384354,0.86157818,105170.0,105160.0,0.38599128]
[1749887384560,0.86157818,105170.0,105160.0,0.40085316]
[1749887384963,0.86157818,105170.0,105160.0,0.40085318]
[1749887385559,0.77246928,105170.0,105160.0,0.44283537]
[1749887386162,0.77246928,105170.0,105160.0,0.40085318]
[1749887386456,0.77246928,105170.0,105160.0,0.38599128]
[1749887386660,0.89126413,105170.0,105160.0,0.44283804]
[1749887387050,0.89126413,105170.0,105160.0,0.42797585]
[1749887387252,0.89126413,105170.0,105160.0,0.44283804]
[1749887387452,0.89126413,105170.0,105160.0,0.42797585]
[1749887387660,0.89126413,105170.0,105160.0,0.44283804]
[1749887388667,0.89126413,105170.0,105160.0,0.42797585]
[1749887388863,0.6798154,105170.0,105160.0,0.61807605]
[1749887389167,0.64597922,105170.0,105160.0,0.63293805]
[1749887389666,0.64597922,105170.0,105160.0,0.6329364]
[1749887389968,0.64597922,105170.0,105160.0,0.61807605]
[1749887390167,0.65011757,105170.0,105160.0,0.6329364]
[1749887390366,0.56102055,105170.0,105160.0,0.64376405]
[1749887390560,0.56102055,105170.0,105160.0,0.6289037]
[1749887390767,0.56102055,105170.0,105160.0,0.64376405]
[1749887391455,0.56102055,105170.0,105160.0,0.6289037]
[1749887391659,0.56102055,105170.0,105160.0,0.64376412]
[1749887391855,0.56102055,105170.0,105160.0,0.62890373]
[1749887392058,0.56102055,105170.0,105160.0,0.64376412]
[1749887392466,0.56102055,105170.0,105160.0,0.6437641]
[1749887392767,0.56102055,105170.0,105160.0,0.62890372]
[1749887392962,0.56102055,105170.0,105160.0,0.63293642]
[1749887393169,0.56102055,105170.0,105160.0,0.64376409]
[1749887393669,0.56102055,105170.0,105160.0,0.64376407]
[1749887394258,0.5568822,105170.0,105160.0,0.62890371]
[1749887394464,0.5568822,105170.0,105160.0,0.64376407]
[1749887394867,0.70343093,105170.0,105160.0,0.64376414]
[1749887395176,0.70756928,105170.0,105160.0,0.62890378]
[1749887395370,0.70756928,105170.0,105160.0,0.64376453]
[1749887395571,0.70756928,105170.0,105160.0,0.64374756]
[1749887395771,0.70756928,105170.0,105160.0,0.62888681]
[1749887395971,0.70756928,105170.0,105160.0,0.6329368]
[1749887396173,0.70756928,105170.0,105160.0,0.63293679]
[1749887396384,0.70756928,105170.0,105160.0,0.64372352]
[1749887396673,0.70756928,105170.0,105160.0,0.64372338]
[1749887396971,0.70756928,105170.0,105160.0,0.64372345]
[1749887397173,0.70756928,105170.0,105160.0,0.62886303]
[1749887397474,0.70756928,105170.0,105160.0,0.64372345]
[1749887397673,0.70756928,105170.0,105160.0,0.67602345]
[1749887397869,0.70756928,105170.0,105160.0,0.66116323]
[1749887398374,0.70756928,105170.0,105160.0,0.66523675]
[1749887398874,0.70756928,105170.0,105160.0,0.6611633]
[1749887399274,0.70756928,105170.0,105160.0,0.65037605]
[1749887399474,0.70756928,105170.0,105160.0,0.66523675]
[1749887399674,0.70756928,105170.0,105160.0,0.6760199]
[1749887399875,0.70756928,105170.0,105160.0,0.66115919]
[1749887400077,0.70756928,105170.0,105160.0,0.67601991]
[1749887400282,0.70756928,105170.0,105160.0,0.66523676]
[1749887400484,0.70756928,105170.0,105160.0,0.67601995]
[1749887400785,0.70756928,105170.0,105160.0,0.6760164]
[1749887400984,0.70756928,105170.0,105160.0,0.65037605]
[1749887401183,0.73866928,105170.0,105160.0,0.65037605]
[1749887401383,0.73866928,105170.0,105160.0,0.66115532]
[1749887401680,0.73866928,105170.0,105160.0,0.66523699]
[1749887401882,0.73866928,105170.0,105160.0,0.67601533]
[1749887402183,0.73866928,105170.0,105160.0,0.65037605]
[1749887402381,0.77156928,105170.0,105160.0,0.10006644]
[1749887402694,0.8606663,105170.0,105160.0,0.24568711]
[1749887402886,0.8924663,105170.0,105160.0,0.23082648]
[1749887403083,0.8924663,105170.0,105160.0,0.24568834]
[1749887403287,0.8924663,105170.0,105160.0,0.23490888]
[1749887403475,0.8924663,105170.0,105160.0,0.24568867]
[1749887403984,0.8924663,105170.0,105160.0,0.0257843]
[1749887404287,0.8924663,105170.0,105160.0,0.20370411]
[1749887404990,0.8924663,105170.0,105160.0,0.20370453]
[1749887405587,0.74591757,105170.0,105160.0,0.35025339]
[1749887405787,0.71411757,105170.0,105160.0,0.54035623]
[1749887405986,0.71411757,105170.0,105160.0,0.46649447]
[1749887406182,0.71411757,105170.0,105160.0,0.67613661]
[1749887406489,0.8606663,105170.0,105160.0,0.67613661]
[1749887406690,0.8606663,105170.0,105160.0,0.67613639]
[1749887406884,0.8606663,105170.0,105160.0,0.66535958]
[1749887407078,0.8606663,105170.0,105160.0,0.67613639]
[1749887407283,0.8606663,105170.0,105160.0,0.66127526]
[1749887407490,0.8606663,105170.0,105160.0,0.67613639]
[1749887407691,0.8606663,105170.0,105160.0,0.67613632]
[1749887408083,0.8606663,105170.0,105160.0,0.66535958]
[1749887408380,0.8606663,105170.0,105160.0,0.6761364]
[1749887408586,0.8606663,105170.0,105160.0,0.67616996]
[1749887409087,0.8606663,105170.0,105160.0,0.66130883]
[1749887409389,0.8606663,105170.0,105160.0,0.67616996]
[1749887409590,0.8606663,105170.0,105160.0,0.66535958]
[1749887409885,0.8606663,105170.0,105160.0,0.66130899]
[1749887410095,0.8606663,105170.0,105160.0,0.66535958]
[1749887410390,0.8606663,105170.0,105160.0,0.67617012]
[1749887410590,0.8606663,105170.0,105160.0,0.66130899]
[1749887410886,0.8606663,105170.0,105160.0,0.65049845]
[1749887411089,0.8606663,105170.0,105160.0,0.66130899]
[1749887411291,0.8606663,105170.0,105160.0,0.67617012]
[1749887411981,0.8606663,105170.0,105160.0,0.67617025]
[1749887412185,0.8606663,105170.0,105160.0,0.65049845]
[1749887412787,0.8606663,105170.0,105160.0,0.33952136]
[1749887412989,0.8606663,105170.0,105160.0,0.24612146]
[1749887413188,0.8909663,105170.0,105160.0,0.41054972]
[1749887413491,0.8909663,105170.0,105160.0,0.43625217]
[1749887413693,0.8909663,105170.0,105160.0,0.42139062]
[1749887413990,0.8909663,105170.0,105160.0,0.43625217]
[1749887414491,0.8909663,105170.0,105160.0,0.58280077]
[1749887414690,0.8909663,105170.0,105160.0,0.58280065]
[1749887414891,0.8909663,105170.0,105160.0,0.58280288]
[1749887415387,0.8909663,105170.0,105160.0,0.58280285]
[1749887415791,0.8909663,105170.0,105160.0,0.57195988]
[1749887416092,0.8909663,105170.0,105160.0,0.58280277]
[1749887416697,0.8909663,105170.0,105160.0,0.58280273]
[1749887417089,0.8909663,105170.0,105160.0,0.56794134]
[1749887417490,0.8909663,105170.0,105160.0,0.57195984]
[1749887417704,0.8909663,105170.0,105160.0,0.56794134]
[1749887417892,0.8909663,105170.0,105160.0,0.58280273]
[1749887418092,0.8909663,105170.0,105160.0,0.57195984]
[1749887418288,0.8909663,105170.0,105160.0,0.58280273]